[Event "Early-Titled-Tuesday-Blitz-March-19-2024"]
[Site "Chess.com"]
[Date "2024.03.19"]
[Round "5"]
[White "Saxar85"]
[Black "RebelJohnny"]
[Result "0-1"]
[WhiteElo "2724"]
[BlackElo "2551"]
[TimeControl "180+1"]
[EndTime "8:57:48 PDT"]
[Termination "RebelJohnny won on time"]

1. e4 {[%clk 0:03:00.9]} 1... c5 {[%clk 0:02:55.8]} 2. Nf3 {[%clk 0:02:59]} 2...
d6 {[%clk 0:02:56.4]} 3. Bb5+ {[%clk 0:02:57.7]} 3... Bd7 {[%clk 0:02:55.8]} 4.
c4 {[%clk 0:02:56.9]} 4... Bxb5 {[%clk 0:02:41]} 5. cxb5 {[%clk 0:02:56]} 5...
Nf6 {[%clk 0:02:41.9]} 6. Nc3 {[%clk 0:02:55]} 6... g6 {[%clk 0:02:42.6]} 7. O-O
{[%clk 0:02:53.7]} 7... Bg7 {[%clk 0:02:43.3]} 8. d4 {[%clk 0:02:52.2]} 8...
cxd4 {[%clk 0:02:44.2]} 9. Nxd4 {[%clk 0:02:51.9]} 9... Nbd7 {[%clk 0:02:44.9]}
10. Qe2 {[%clk 0:02:50.4]} 10... O-O {[%clk 0:02:45.6]} 11. Rd1 {[%clk
0:02:49.1]} 11... Qc7 {[%clk 0:02:46.3]} 12. Be3 {[%clk 0:02:46.4]} 12... Ne5
{[%clk 0:02:46.5]} 13. Rac1 {[%clk 0:02:45.1]} 13... Rfc8 {[%clk 0:02:46.3]} 14.
h3 {[%clk 0:02:24.2]} 14... Qa5 {[%clk 0:02:46.1]} 15. Bd2 {[%clk 0:02:05]}
15... Qd8 {[%clk 0:02:29.4]} 16. b3 {[%clk 0:02:02.3]} 16... e6 {[%clk 0:02:18]}
17. a4 {[%clk 0:01:34.6]} 17... d5 {[%clk 0:01:58.4]} 18. Bf4 {[%clk 0:01:27.8]}
18... Nh5 {[%clk 0:00:42.9]} 19. Bh2 {[%clk 0:01:27.1]} 19... Qh4 {[%clk
0:00:30.7]} 20. Bxe5 {[%clk 0:00:53.1]} 20... Bxe5 {[%clk 0:00:30]} 21. Nf3
{[%clk 0:00:53.1]} 21... Qf6 {[%clk 0:00:21.3]} 22. Nxe5 {[%clk 0:00:52.1]}
22... Qxe5 {[%clk 0:00:22.2]} 23. exd5 {[%clk 0:00:51.1]} 23... Qxe2 {[%clk
0:00:22.2]} 24. Nxe2 {[%clk 0:00:50.5]} 24... Rxc1 {[%clk 0:00:22.9]} 25. Nxc1
{[%clk 0:00:50.4]} 25... Rd8 {[%clk 0:00:23.3]} 26. d6 {[%clk 0:00:48.7]} 26...
Nf4 {[%clk 0:00:23.8]} 27. Kf1 {[%clk 0:00:35.6]} 27... Nd5 {[%clk 0:00:24]} 28.
Nd3 {[%clk 0:00:31.6]} 28... Rxd6 {[%clk 0:00:24.2]} 29. Nc5 {[%clk 0:00:31.5]}
29... b6 {[%clk 0:00:23.1]} 30. Ne4 {[%clk 0:00:31.3]} 30... Rd7 {[%clk
0:00:22.7]} 31. Rc1 {[%clk 0:00:21.7]} 31... Kg7 {[%clk 0:00:11]} 32. Ke2 {[%clk
0:00:17.4]} 32... Nf4+ {[%clk 0:00:10.7]} 33. Kf3 {[%clk 0:00:16.5]} 33... e5
{[%clk 0:00:09.3]} 34. Rc3 {[%clk 0:00:15.5]} 34... f5 {[%clk 0:00:06]} 35. Ng3
{[%clk 0:00:13.9]} 35... Nd5 {[%clk 0:00:03.4]} 36. Rc8 {[%clk 0:00:09.8]} 36...
e4+ {[%clk 0:00:04.3]} 37. Ke2 {[%clk 0:00:09.6]} 37... Nf4+ {[%clk 0:00:04.9]}
38. Ke1 {[%clk 0:00:08]} 38... Nxg2+ {[%clk 0:00:05.5]} 39. Ke2 {[%clk
0:00:07.9]} 39... Nf4+ {[%clk 0:00:06.2]} 40. Ke1 {[%clk 0:00:08.2]} 40... Nd3+
{[%clk 0:00:06.9]} 41. Ke2 {[%clk 0:00:07.8]} 41... Nc5 {[%clk 0:00:07.4]} 42.
a5 {[%clk 0:00:05.2]} 42... Nxb3 {[%clk 0:00:06.8]} 43. axb6 {[%clk 0:00:04.9]}
43... axb6 {[%clk 0:00:07.7]} 44. Ke3 {[%clk 0:00:04.8]} 44... Nd4 {[%clk
0:00:05.6]} 45. Rb8 {[%clk 0:00:04]} 45... Nxb5 {[%clk 0:00:05.8]} 46. Rxb6
{[%clk 0:00:04.3]} 46... Nc3 {[%clk 0:00:06.5]} 0-1

[Event "Early-Titled-Tuesday-Blitz-March-19-2024"]
[Site "Chess.com"]
[Date "2024.03.19"]
[Round "5"]
[White "ChessSwole"]
[Black "2KTNGO"]
[Result "0-1"]
[WhiteElo "2687"]
[BlackElo "2540"]
[TimeControl "180+1"]
[EndTime "8:57:54 PDT"]
[Termination "2KTNGO won on time"]

1. d4 {[%clk 0:03:00.9]} 1... Nf6 {[%clk 0:02:59.1]} 2. c4 {[%clk 0:03:00.5]}
2... Nc6 {[%clk 0:02:59]} 3. Nf3 {[%clk 0:03:00.2]} 3... e6 {[%clk 0:02:58.8]}
4. g3 {[%clk 0:02:59.4]} 4... Bb4+ {[%clk 0:02:58.2]} 5. Bd2 {[%clk 0:02:58.2]}
5... Qe7 {[%clk 0:02:57.4]} 6. Bg2 {[%clk 0:02:57]} 6... Bxd2+ {[%clk
0:02:56.9]} 7. Qxd2 {[%clk 0:02:55.7]} 7... Ne4 {[%clk 0:02:54.6]} 8. Qc2 {[%clk
0:02:54.1]} 8... Qb4+ {[%clk 0:02:51.4]} 9. Kf1 {[%clk 0:02:48]} 9... d5 {[%clk
0:02:48.8]} 10. e3 {[%clk 0:02:27.2]} 10... Qxc4+ {[%clk 0:02:43.5]} 11. Qxc4
{[%clk 0:02:26.7]} 11... dxc4 {[%clk 0:02:43.1]} 12. Na3 {[%clk 0:02:13.2]}
12... Nd6 {[%clk 0:02:40.7]} 13. Rc1 {[%clk 0:02:00.6]} 13... Na5 {[%clk
0:02:38.4]} 14. Ne5 {[%clk 0:01:58.3]} 14... Bd7 {[%clk 0:02:19.7]} 15. Ke1
{[%clk 0:01:44.9]} 15... Ke7 {[%clk 0:01:47.8]} 16. Naxc4 {[%clk 0:01:39.6]}
16... Naxc4 {[%clk 0:01:46.5]} 17. Nxc4 {[%clk 0:01:40.5]} 17... Rab8 {[%clk
0:01:39.1]} 18. Kd2 {[%clk 0:01:31.7]} 18... Rhc8 {[%clk 0:01:36.7]} 19. Ne5
{[%clk 0:01:21.2]} 19... Be8 {[%clk 0:01:33.5]} 20. Rc5 {[%clk 0:01:04.1]} 20...
f6 {[%clk 0:01:28.5]} 21. Nd3 {[%clk 0:01:00.8]} 21... c6 {[%clk 0:01:10.5]} 22.
Rhc1 {[%clk 0:00:57.9]} 22... Rd8 {[%clk 0:01:08.1]} 23. Ke2 {[%clk 0:00:51]}
23... Bg6 {[%clk 0:01:01.1]} 24. Nf4 {[%clk 0:00:45]} 24... Bf7 {[%clk
0:00:53.6]} 25. h4 {[%clk 0:00:43.1]} 25... g6 {[%clk 0:00:43.3]} 26. b3 {[%clk
0:00:40.7]} 26... h6 {[%clk 0:00:42.8]} 27. Nd3 {[%clk 0:00:37.4]} 27... g5
{[%clk 0:00:40.3]} 28. Rh1 {[%clk 0:00:35.2]} 28... Rh8 {[%clk 0:00:39.3]} 29.
Nb4 {[%clk 0:00:27.2]} 29... Rbc8 {[%clk 0:00:32.6]} 30. Ra5 {[%clk 0:00:22.9]}
30... a6 {[%clk 0:00:32.1]} 31. Rc5 {[%clk 0:00:23.3]} 31... Nf5 {[%clk
0:00:31.1]} 32. Be4 {[%clk 0:00:18]} 32... Nd6 {[%clk 0:00:29.4]} 33. Bf3 {[%clk
0:00:16.3]} 33... Bg6 {[%clk 0:00:28.1]} 34. Rhc1 {[%clk 0:00:14.9]} 34... Be4
{[%clk 0:00:26.2]} 35. h5 {[%clk 0:00:12.1]} 35... Bxf3+ {[%clk 0:00:24.4]} 36.
Kxf3 {[%clk 0:00:13]} 36... Rhg8 {[%clk 0:00:23.2]} 37. Kg2 {[%clk 0:00:11.9]}
37... g4 {[%clk 0:00:21.4]} 38. Nd3 {[%clk 0:00:11.4]} 38... Ne4 {[%clk
0:00:20]} 39. R5c2 {[%clk 0:00:09.9]} 39... Rg5 {[%clk 0:00:19.1]} 40. Nf4
{[%clk 0:00:10.3]} 40... e5 {[%clk 0:00:18.3]} 41. dxe5 {[%clk 0:00:10.5]} 41...
fxe5 {[%clk 0:00:18.2]} 42. Ng6+ {[%clk 0:00:10]} 42... Ke6 {[%clk 0:00:16.9]}
43. Rc4 {[%clk 0:00:09.5]} 43... Nd6 {[%clk 0:00:14.9]} 44. Rb4 {[%clk
0:00:07.8]} 44... b5 {[%clk 0:00:14.2]} 45. a4 {[%clk 0:00:07]} 45... c5 {[%clk
0:00:14]} 46. axb5 {[%clk 0:00:06.1]} 46... cxb4 {[%clk 0:00:13.9]} 47. Rxc8
{[%clk 0:00:01.7]} 47... Nxc8 {[%clk 0:00:13.6]} 48. bxa6 {[%clk 0:00:01.9]}
48... Na7 {[%clk 0:00:12]} 49. Nf8+ {[%clk 0:00:01.1]} 49... Kf7 {[%clk
0:00:11.7]} 0-1

[Event "Early-Titled-Tuesday-Blitz-March-19-2024"]
[Site "Chess.com"]
[Date "2024.03.19"]
[Round "5"]
[White "otrov-11"]
[Black "AlanZhang"]
[Result "1-0"]
[WhiteElo "2604"]
[BlackElo "2226"]
[TimeControl "180+1"]
[EndTime "8:57:54 PDT"]
[Termination "otrov-11 won by resignation"]

1. d4 {[%clk 0:03:00.9]} 1... Nf6 {[%clk 0:02:57.9]} 2. c4 {[%clk 0:02:32.1]}
2... e6 {[%clk 0:02:56.7]} 3. g3 {[%clk 0:02:32.6]} 3... d5 {[%clk 0:02:57.1]}
4. Nf3 {[%clk 0:02:33.1]} 4... dxc4 {[%clk 0:02:57.7]} 5. Bg2 {[%clk 0:02:32.8]}
5... b5 {[%clk 0:02:58.2]} 6. O-O {[%clk 0:02:33]} 6... c6 {[%clk 0:02:58.3]} 7.
b3 {[%clk 0:02:33.4]} 7... cxb3 {[%clk 0:02:51.4]} 8. axb3 {[%clk 0:02:34.3]}
8... Bb7 {[%clk 0:02:51.5]} 9. Bb2 {[%clk 0:02:31.7]} 9... Be7 {[%clk
0:02:51.7]} 10. Nc3 {[%clk 0:02:27.8]} 10... Nbd7 {[%clk 0:02:50.6]} 11. Qc2
{[%clk 0:02:17.4]} 11... O-O {[%clk 0:02:44]} 12. Rfd1 {[%clk 0:02:17.4]} 12...
Qb6 {[%clk 0:02:40.5]} 13. Ne5 {[%clk 0:02:12.9]} 13... Rfd8 {[%clk 0:02:35.2]}
14. e3 {[%clk 0:02:00.7]} 14... c5 {[%clk 0:02:18.5]} 15. Bxb7 {[%clk
0:01:46.3]} 15... Qxb7 {[%clk 0:02:18.5]} 16. Qe2 {[%clk 0:01:33.8]} 16... a6
{[%clk 0:02:14.5]} 17. Nd3 {[%clk 0:01:16.2]} 17... cxd4 {[%clk 0:01:51.1]} 18.
exd4 {[%clk 0:01:17.1]} 18... Rac8 {[%clk 0:01:50.4]} 19. Nf4 {[%clk 0:01:12.3]}
19... Nb6 {[%clk 0:01:47.5]} 20. Re1 {[%clk 0:01:00.4]} 20... Bb4 {[%clk
0:01:32.4]} 21. Rec1 {[%clk 0:00:49.3]} 21... Rxd4 {[%clk 0:01:10.5]} 22. Nxb5
{[%clk 0:00:42.7]} 22... Rxc1+ {[%clk 0:01:10.2]} 23. Rxc1 {[%clk 0:00:37.2]}
23... Rxf4 {[%clk 0:01:04.6]} 24. gxf4 {[%clk 0:00:37.8]} 24... axb5 {[%clk
0:01:01.1]} 25. Qxb5 {[%clk 0:00:38.7]} 25... Be7 {[%clk 0:00:17]} 26. Rc6
{[%clk 0:00:38.3]} 26... Nfd7 {[%clk 0:00:16.6]} 27. Bd4 {[%clk 0:00:37.2]}
27... Bd8 {[%clk 0:00:16.1]} 28. Rd6 {[%clk 0:00:35.2]} 28... Be7 {[%clk
0:00:10.2]} 29. Rc6 {[%clk 0:00:25.4]} 29... Bd8 {[%clk 0:00:09.5]} 30. Be3
{[%clk 0:00:21.8]} 30... h6 {[%clk 0:00:07.8]} 31. Rd6 {[%clk 0:00:22.1]} 31...
Qc7 {[%clk 0:00:03.7]} 32. Rd1 {[%clk 0:00:20.2]} 32... Nd5 {[%clk 0:00:02.5]}
33. Qc4 {[%clk 0:00:17.4]} 33... Qxc4 {[%clk 0:00:02.5]} 34. bxc4 {[%clk
0:00:18.3]} 34... Nxe3 {[%clk 0:00:02.9]} 35. Rxd7 {[%clk 0:00:17.7]} 35... Bb6
{[%clk 0:00:03.8]} 36. fxe3 {[%clk 0:00:17.7]} 36... Bxe3+ {[%clk 0:00:03]} 37.
Kg2 {[%clk 0:00:18.3]} 37... Bxf4 {[%clk 0:00:03.9]} 38. c5 {[%clk 0:00:18.7]}
38... Kf8 {[%clk 0:00:03.8]} 39. c6 {[%clk 0:00:19]} 39... Ke8 {[%clk
0:00:04.4]} 40. Rb7 {[%clk 0:00:18.2]} 40... g5 {[%clk 0:00:04.4]} 41. Kf3
{[%clk 0:00:18.6]} 41... Bxh2 {[%clk 0:00:03.4]} 42. Rd7 {[%clk 0:00:15.1]}
42... f5 {[%clk 0:00:03.8]} 43. Kg2 {[%clk 0:00:14.9]} 43... Be5 {[%clk
0:00:03.4]} 44. Rh7 {[%clk 0:00:15.1]} 44... g4 {[%clk 0:00:02.3]} 45. c7 {[%clk
0:00:15.2]} 45... Bxc7 {[%clk 0:00:01.3]} 46. Rxc7 {[%clk 0:00:16.1]} 46... h5
{[%clk 0:00:01.2]} 47. Rh7 {[%clk 0:00:17]} 47... e5 {[%clk 0:00:01.3]} 48. Rxh5
{[%clk 0:00:17.6]} 48... f4 {[%clk 0:00:01.9]} 49. Rg5 {[%clk 0:00:18.1]} 49...
Ke7 {[%clk 0:00:02.2]} 50. Rxg4 {[%clk 0:00:18.4]} 50... Kf6 {[%clk 0:00:03.1]}
51. Kf3 {[%clk 0:00:19.1]} 51... Kf5 {[%clk 0:00:03.6]} 52. Rg8 {[%clk
0:00:19.8]} 52... e4+ {[%clk 0:00:03.9]} 53. Kf2 {[%clk 0:00:20.6]} 53... Ke5
{[%clk 0:00:04.4]} 54. Rf8 {[%clk 0:00:20.8]} 54... f3 {[%clk 0:00:02.6]} 55.
Ke3 {[%clk 0:00:21.3]} 55... Kd5 {[%clk 0:00:02.8]} 56. Re8 {[%clk 0:00:21.8]}
56... f2 {[%clk 0:00:01.2]} 57. Rf8 {[%clk 0:00:21.9]} 57... Ke5 {[%clk
0:00:01.3]} 58. Rxf2 {[%clk 0:00:22]} 58... Kd5 {[%clk 0:00:02.2]} 59. Rf4
{[%clk 0:00:21]} 59... Ke5 {[%clk 0:00:03.1]} 60. Rxe4+ {[%clk 0:00:21.9]} 60...
Kd6 {[%clk 0:00:03.3]} 61. Rf4 {[%clk 0:00:22.8]} 61... Kc5 {[%clk 0:00:03.6]}
62. Ke4 {[%clk 0:00:23.7]} 62... Kc4 {[%clk 0:00:03.9]} 63. Rf3 {[%clk
0:00:24.4]} 1-0

[Event "Early-Titled-Tuesday-Blitz-March-19-2024"]
[Site "Chess.com"]
[Date "2024.03.19"]
[Round "5"]
[White "vasblesk"]
[Black "shimastream"]
[Result "1/2-1/2"]
[WhiteElo "2785"]
[BlackElo "3002"]
[TimeControl "180+1"]
[EndTime "8:57:55 PDT"]
[Termination "Game drawn by repetition"]

1. d4 {[%clk 0:03:00.9]} 1... d5 {[%clk 0:02:54.9]} 2. c4 {[%clk 0:03:00.7]}
2... e6 {[%clk 0:02:54]} 3. Nf3 {[%clk 0:02:59.1]} 3... a6 {[%clk 0:02:52.6]} 4.
g3 {[%clk 0:02:58.9]} 4... dxc4 {[%clk 0:02:50]} 5. Bg2 {[%clk 0:02:59.4]} 5...
Nc6 {[%clk 0:02:09.2]} 6. O-O {[%clk 0:02:56.9]} 6... Nf6 {[%clk 0:02:09.3]} 7.
a4 {[%clk 0:02:52.8]} 7... Rb8 {[%clk 0:02:08.3]} 8. a5 {[%clk 0:02:52.6]} 8...
b5 {[%clk 0:02:00.9]} 9. axb6 {[%clk 0:02:50.5]} 9... cxb6 {[%clk 0:02:01.5]}
10. Bf4 {[%clk 0:02:51.1]} 10... Bd6 {[%clk 0:02:01.5]} 11. Ne5 {[%clk
0:02:51.6]} 11... Ne7 {[%clk 0:02:01.5]} 12. Bc6+ {[%clk 0:02:51.2]} 12... Kf8
{[%clk 0:02:01.4]} 13. Bg2 {[%clk 0:02:44.3]} 13... b5 {[%clk 0:02:01.4]} 14. b3
{[%clk 0:02:41.9]} 14... cxb3 {[%clk 0:01:57.7]} 15. Qxb3 {[%clk 0:02:42.8]}
15... Nfd5 {[%clk 0:01:56.9]} 16. Bd2 {[%clk 0:02:36.5]} 16... h5 {[%clk
0:01:51.9]} 17. e4 {[%clk 0:02:35.5]} 17... Nb6 {[%clk 0:01:49]} 18. Bb4 {[%clk
0:02:23.2]} 18... h4 {[%clk 0:01:42.7]} 19. Nd2 {[%clk 0:01:56.4]} 19... hxg3
{[%clk 0:01:20]} 20. hxg3 {[%clk 0:01:53.7]} 20... Kg8 {[%clk 0:01:08.2]} 21.
Ndf3 {[%clk 0:01:37.3]} 21... f6 {[%clk 0:00:55]} 22. Nd3 {[%clk 0:01:33.4]}
22... Bxb4 {[%clk 0:00:55.2]} 23. Nxb4 {[%clk 0:01:25.5]} 23... Na4 {[%clk
0:00:40.1]} 24. d5 {[%clk 0:01:18.9]} 24... Rb6 {[%clk 0:00:36.7]} 25. Nd4
{[%clk 0:01:08.1]} 25... exd5 {[%clk 0:00:12.4]} 26. exd5 {[%clk 0:00:45]} 26...
Rd6 {[%clk 0:00:11.1]} 27. Ndc6 {[%clk 0:00:34.5]} 27... Qf8 {[%clk 0:00:09.9]}
28. Nxe7+ {[%clk 0:00:31.7]} 28... Qxe7 {[%clk 0:00:09.8]} 29. Nc6 {[%clk
0:00:32.4]} 29... Qf8 {[%clk 0:00:08.1]} 30. Qe3 {[%clk 0:00:31.9]} 30... Bd7
{[%clk 0:00:07.7]} 31. Rfe1 {[%clk 0:00:18.4]} 31... Rh5 {[%clk 0:00:03.9]} 32.
Qf4 {[%clk 0:00:14.9]} 32... Kf7 {[%clk 0:00:02.1]} 33. Ne5+ {[%clk 0:00:13.3]}
33... Kg8 {[%clk 0:00:02.1]} 34. Nxd7 {[%clk 0:00:09.4]} 34... Rxd7 {[%clk
0:00:02.1]} 35. Bf3 {[%clk 0:00:10.1]} 35... Rg5 {[%clk 0:00:01.8]} 36. Re6
{[%clk 0:00:09.2]} 36... Nc5 {[%clk 0:00:02.2]} 37. Rc6 {[%clk 0:00:09.3]} 37...
Nd3 {[%clk 0:00:02.2]} 38. Qe3 {[%clk 0:00:09.4]} 38... Ne5 {[%clk 0:00:03.1]}
39. Rcxa6 {[%clk 0:00:09.3]} 39... Nxf3+ {[%clk 0:00:03.1]} 40. Qxf3 {[%clk
0:00:10.2]} 40... Rgxd5 {[%clk 0:00:03.8]} 41. Ra8 {[%clk 0:00:09.6]} 41... Rd8
{[%clk 0:00:04.4]} 42. Rxd8 {[%clk 0:00:08.6]} 42... Rxd8 {[%clk 0:00:05.3]} 43.
Qb3+ {[%clk 0:00:08.7]} 43... Qf7 {[%clk 0:00:05.7]} 44. Qxb5 {[%clk 0:00:09.4]}
44... Qd5 {[%clk 0:00:05.8]} 45. Qxd5+ {[%clk 0:00:09.1]} 45... Rxd5 {[%clk
0:00:06.7]} 46. Ra7 {[%clk 0:00:09.4]} 46... Re5 {[%clk 0:00:06.8]} 47. Kg2
{[%clk 0:00:09.8]} 47... g5 {[%clk 0:00:06.9]} 48. g4 {[%clk 0:00:09.4]} 48...
Re4 {[%clk 0:00:07.1]} 49. f3 {[%clk 0:00:09.8]} 49... Rf4 {[%clk 0:00:07.1]}
50. Kf2 {[%clk 0:00:09.9]} 50... Kf8 {[%clk 0:00:07.4]} 51. Kg3 {[%clk
0:00:10.2]} 51... Rd4 {[%clk 0:00:07.3]} 52. Ra6 {[%clk 0:00:10.3]} 52... Rf4
{[%clk 0:00:07.5]} 53. Ra7 {[%clk 0:00:10.6]} 53... Rd4 {[%clk 0:00:07.2]} 54.
Rb7 {[%clk 0:00:10.9]} 54... Rc4 {[%clk 0:00:06.9]} 55. Ra7 {[%clk 0:00:11.1]}
55... Rd4 {[%clk 0:00:07.2]} 1/2-1/2

[Event "Early-Titled-Tuesday-Blitz-March-19-2024"]
[Site "Chess.com"]
[Date "2024.03.19"]
[Round "5"]
[White "Zq1"]
[Black "Gryffindorac8"]
[Result "0-1"]
[WhiteElo "2589"]
[BlackElo "2393"]
[TimeControl "180+1"]
[EndTime "8:57:56 PDT"]
[Termination "Gryffindorac8 won on time"]

1. d4 {[%clk 0:03:00.9]} 1... Nf6 {[%clk 0:02:59.6]} 2. c4 {[%clk 0:03:00.7]}
2... c5 {[%clk 0:02:59.5]} 3. Nf3 {[%clk 0:02:59.5]} 3... cxd4 {[%clk
0:02:58.9]} 4. Nxd4 {[%clk 0:02:59.6]} 4... e5 {[%clk 0:02:59.2]} 5. Nb5 {[%clk
0:02:59.1]} 5... d5 {[%clk 0:02:59.5]} 6. cxd5 {[%clk 0:02:58.3]} 6... Bc5
{[%clk 0:02:59.7]} 7. N5c3 {[%clk 0:02:57.6]} 7... O-O {[%clk 0:02:56.7]} 8. g3
{[%clk 0:02:57.2]} 8... e4 {[%clk 0:02:50.7]} 9. Bg2 {[%clk 0:02:54.7]} 9... Re8
{[%clk 0:02:50.7]} 10. O-O {[%clk 0:02:50.7]} 10... Bf5 {[%clk 0:02:41.3]} 11.
Bg5 {[%clk 0:02:47.5]} 11... h6 {[%clk 0:02:30.3]} 12. Bxf6 {[%clk 0:02:47.3]}
12... Qxf6 {[%clk 0:02:31.2]} 13. e3 {[%clk 0:02:46.5]} 13... Nd7 {[%clk
0:02:08.9]} 14. Nd2 {[%clk 0:02:45.1]} 14... Qg6 {[%clk 0:02:05.2]} 15. Rc1
{[%clk 0:02:34.3]} 15... Rad8 {[%clk 0:02:02]} 16. Qa4 {[%clk 0:02:22.9]} 16...
Nb6 {[%clk 0:01:17]} 17. Qb5 {[%clk 0:02:06]} 17... Bf8 {[%clk 0:01:10.9]} 18.
a4 {[%clk 0:01:58.4]} 18... Re7 {[%clk 0:00:38.4]} 19. a5 {[%clk 0:01:51.9]}
19... Nc8 {[%clk 0:00:38.5]} 20. Ncxe4 {[%clk 0:01:18.8]} 20... Bxe4 {[%clk
0:00:32.9]} 21. Nxe4 {[%clk 0:01:18.1]} 21... Rxe4 {[%clk 0:00:32.7]} 22. Bxe4
{[%clk 0:01:12.3]} 22... Qxe4 {[%clk 0:00:33.6]} 23. Qxb7 {[%clk 0:01:12.1]}
23... Nd6 {[%clk 0:00:27.4]} 24. Qxa7 {[%clk 0:01:10.2]} 24... Qxd5 {[%clk
0:00:26.8]} 25. Rfd1 {[%clk 0:01:07.4]} 25... Qf3 {[%clk 0:00:19.1]} 26. Rf1
{[%clk 0:00:30.8]} 26... Ne4 {[%clk 0:00:17]} 27. Rc2 {[%clk 0:00:30.2]} 27...
Rd1 {[%clk 0:00:11.1]} 28. Qc7 {[%clk 0:00:13.8]} 28... Nd2 {[%clk 0:00:08.7]}
29. Rxd2 {[%clk 0:00:08.2]} 29... Rxd2 {[%clk 0:00:08.9]} 30. a6 {[%clk
0:00:08.3]} 30... Rxb2 {[%clk 0:00:06.5]} 31. a7 {[%clk 0:00:07.9]} 31... Ra2
{[%clk 0:00:06.8]} 32. Qb8 {[%clk 0:00:06.3]} 32... Qc6 {[%clk 0:00:04.2]} 33.
h4 {[%clk 0:00:04.4]} 33... Qa6 {[%clk 0:00:04.4]} 34. h5 {[%clk 0:00:03.6]}
34... Qxa7 {[%clk 0:00:04.7]} 35. Qb3 {[%clk 0:00:03.8]} 35... Qa4 {[%clk
0:00:04.7]} 36. Qd5 {[%clk 0:00:03.7]} 36... Qc2 {[%clk 0:00:04.2]} 37. Qf3
{[%clk 0:00:03.3]} 37... Ra6 {[%clk 0:00:03.5]} 38. Kg2 {[%clk 0:00:03.4]} 38...
Rf6 {[%clk 0:00:03.7]} 39. Qd5 {[%clk 0:00:02.4]} 39... Qc6 {[%clk 0:00:04.2]}
40. Qxc6 {[%clk 0:00:02.3]} 40... Rxc6 {[%clk 0:00:05.1]} 41. g4 {[%clk
0:00:02.3]} 41... Rf6 {[%clk 0:00:05.8]} 42. Kg3 {[%clk 0:00:02.7]} 42... Bd6+
{[%clk 0:00:06.4]} 43. f4 {[%clk 0:00:02.6]} 43... Re6 {[%clk 0:00:07]} 44. Kf3
{[%clk 0:00:02.8]} 44... Bf8 {[%clk 0:00:07.6]} 45. e4 {[%clk 0:00:03.1]} 45...
Ra6 {[%clk 0:00:07.6]} 46. e5 {[%clk 0:00:01.9]} 46... Ra3+ {[%clk 0:00:07.7]}
47. Ke4 {[%clk 0:00:02.3]} 47... Ra4+ {[%clk 0:00:08.2]} 48. Kf5 {[%clk
0:00:02.9]} 48... Kh7 {[%clk 0:00:06.5]} 49. Rd1 {[%clk 0:00:03.4]} 49... Be7
{[%clk 0:00:06.6]} 50. Rd7 {[%clk 0:00:03.3]} 50... Bc5 {[%clk 0:00:04.7]} 51.
Rxf7 {[%clk 0:00:03]} 51... Be3 {[%clk 0:00:05.1]} 52. Ke6 {[%clk 0:00:01]}
52... Rxf4 {[%clk 0:00:05.2]} 0-1

[Event "Early-Titled-Tuesday-Blitz-March-19-2024"]
[Site "Chess.com"]
[Date "2024.03.19"]
[Round "5"]
[White "Akylbek2021"]
[Black "Golubovsky"]
[Result "1-0"]
[WhiteElo "2334"]
[BlackElo "2507"]
[TimeControl "180+1"]
[EndTime "8:57:57 PDT"]
[Termination "Akylbek2021 won on time"]

1. e4 {[%clk 0:02:52.6]} 1... c5 {[%clk 0:02:58.3]} 2. Nc3 {[%clk 0:02:47.3]}
2... d5 {[%clk 0:02:57.7]} 3. exd5 {[%clk 0:02:46.4]} 3... Nf6 {[%clk
0:02:56.2]} 4. Bb5+ {[%clk 0:02:45.6]} 4... Bd7 {[%clk 0:02:55.7]} 5. Bc4 {[%clk
0:02:45.6]} 5... a6 {[%clk 0:02:46.6]} 6. a4 {[%clk 0:02:45.3]} 6... Bf5 {[%clk
0:02:43.6]} 7. Nf3 {[%clk 0:02:43.9]} 7... Nbd7 {[%clk 0:02:40.5]} 8. a5 {[%clk
0:02:36.5]} 8... g6 {[%clk 0:02:23.8]} 9. d4 {[%clk 0:02:31.2]} 9... Bg7 {[%clk
0:02:20.5]} 10. O-O {[%clk 0:02:30]} 10... O-O {[%clk 0:02:19]} 11. h3 {[%clk
0:02:26.1]} 11... Ne4 {[%clk 0:02:11]} 12. Nxe4 {[%clk 0:02:11.6]} 12... Bxe4
{[%clk 0:02:11]} 13. dxc5 {[%clk 0:01:52.4]} 13... Nxc5 {[%clk 0:02:10.8]} 14.
Be3 {[%clk 0:01:50.9]} 14... Rc8 {[%clk 0:02:06.3]} 15. c3 {[%clk 0:01:35.2]}
15... Qd6 {[%clk 0:02:03.4]} 16. Re1 {[%clk 0:01:29.3]} 16... Bf5 {[%clk
0:01:55.8]} 17. Ba2 {[%clk 0:01:28.6]} 17... Nd3 {[%clk 0:01:52.1]} 18. Re2
{[%clk 0:01:13.7]} 18... Rfd8 {[%clk 0:01:40.4]} 19. Bd4 {[%clk 0:01:09.8]}
19... Nf4 {[%clk 0:01:33.7]} 20. Rd2 {[%clk 0:01:09.3]} 20... Bh6 {[%clk
0:01:29.4]} 21. Be3 {[%clk 0:01:06.1]} 21... Qf6 {[%clk 0:01:18.7]} 22. Nd4
{[%clk 0:01:00.7]} 22... Be4 {[%clk 0:01:15.1]} 23. Qg4 {[%clk 0:00:31.9]} 23...
Bxg2 {[%clk 0:01:06.1]} 24. Rad1 {[%clk 0:00:24.9]} 24... Bxh3 {[%clk
0:01:05.4]} 25. Qg3 {[%clk 0:00:21.8]} 25... Bd7 {[%clk 0:00:54.4]} 26. c4
{[%clk 0:00:20.9]} 26... Nh3+ {[%clk 0:00:47.8]} 27. Kg2 {[%clk 0:00:21.4]}
27... Bxe3 {[%clk 0:00:47]} 28. fxe3 {[%clk 0:00:19]} 28... Ng5 {[%clk
0:00:44.2]} 29. Rf2 {[%clk 0:00:15.8]} 29... Ne4 {[%clk 0:00:20.7]} 30. Rxf6
{[%clk 0:00:15.9]} 30... Nxg3 {[%clk 0:00:19.5]} 31. Rf4 {[%clk 0:00:16.3]}
31... Nh5 {[%clk 0:00:18.6]} 32. Rf2 {[%clk 0:00:13]} 32... Nf6 {[%clk
0:00:14.9]} 33. Rdf1 {[%clk 0:00:12.7]} 33... Be8 {[%clk 0:00:13]} 34. b4 {[%clk
0:00:10.2]} 34... Ne4 {[%clk 0:00:12.5]} 35. Rb2 {[%clk 0:00:10.9]} 35... Nc3
{[%clk 0:00:10.8]} 36. Rc1 {[%clk 0:00:09.3]} 36... Nxa2 {[%clk 0:00:10.1]} 37.
Rxa2 {[%clk 0:00:10.2]} 37... Rxd5 {[%clk 0:00:10.4]} 38. Rac2 {[%clk 0:00:06]}
38... Re5 {[%clk 0:00:09.9]} 39. Kf3 {[%clk 0:00:06.4]} 39... Bd7 {[%clk
0:00:10.4]} 40. b5 {[%clk 0:00:05.1]} 40... Kg7 {[%clk 0:00:08.2]} 41. bxa6
{[%clk 0:00:03]} 41... bxa6 {[%clk 0:00:08.2]} 42. c5 {[%clk 0:00:03.9]} 42...
Bc6+ {[%clk 0:00:08]} 43. Kf2 {[%clk 0:00:02.6]} 43... h5 {[%clk 0:00:04.6]} 44.
Rb2 {[%clk 0:00:03.1]} 44... h4 {[%clk 0:00:02.7]} 45. Rb6 {[%clk 0:00:03.7]}
45... Bd7 {[%clk 0:00:01.7]} 46. c6 {[%clk 0:00:04.2]} 46... Be8 {[%clk
0:00:02.2]} 47. Rxa6 {[%clk 0:00:04.4]} 47... g5 {[%clk 0:00:02]} 48. Ra7 {[%clk
0:00:04.6]} 48... Rd5 {[%clk 0:00:01.4]} 49. Nf3 {[%clk 0:00:04.2]} 1-0